bitfinex/quotes_SOLUSD_20260211
["timestamp","ask_amount","ask_price","bid_price","bid_amount"]
[1770844888649,1.73797937,80.081,80.06,4.79981722]
[1770844888852,55.42,80.084,80.07,4.79981722]
[1770844889053,55.42,80.084,80.061,0.36556557]
[1770844890261,55.42,80.084,80.07,4.79981722]
[1770844892965,55.42,80.084,80.07,4.79953014]
[1770844895649,12.4864442,80.087,80.07,4.79953014]
[1770844895849,55.56,80.095,80.08,4.79953014]
[1770844896246,31.20747321,80.11,80.081,1.66067665]
[1770844896247,12.4841843,80.102,80.081,1.66067665]
[1770844896681,12.4841843,80.102,80.09,4.79953014]
[1770844897182,12.4841843,80.102,80.081,1.66067665]
[1770844897347,12.4841843,80.102,80.08,4.79953014]
[1770844897870,12.48274965,80.111,80.091,1.66067665]
[1770844899661,1.73797937,80.115,80.091,1.66067665]
[1770844899864,55.62,80.114,80.091,1.66067665]
[1770844900176,57.35797937,80.114,80.091,1.66067665]
[1770844901559,57.35797937,80.114,80.1,4.79953014]
[1770844902057,5.36086188,80.148,80.1,4.79953014]
[1770844902058,12.4800771,80.128,80.101,1.66067665]
[1770844902386,68.1600771,80.128,80.11,4.79953014]
[1770844902587,69.89805647,80.128,80.11,4.79953014]
[1770844902785,14.21805647,80.128,80.11,4.79953014]
[1770844903168,1.73797937,80.127,80.101,1.66067665]
[1770844903477,1.73797937,80.127,80.11,4.79953014]
[1770844905665,55.68,80.131,80.11,6.46020679]
[1770844905869,0.2,80.14,80.121,1.66067665]
[1770844906178,0.2,80.14,80.13,4.79953014]
[1770844908679,31.18801562,80.159,80.13,4.79953014]
[1770844908680,32.92233772,80.169,80.131,1.66067665]
[1770844908866,1.73797937,80.169,80.15,6.46020679]
[1770844909070,12.473805,80.168,80.15,6.46020679]
[1770844909281,0.2,80.17,80.16,4.79953014]
[1770844909661,12.47364941,80.169,80.16,4.79953014]
[1770844910963,0.2,80.17,80.16,12.82572889]
[1770844911163,55.68,80.195,80.17,12.82572889]
[1770844911370,1.60731737,80.194,80.17,12.82572889]
[1770844912288,55.68,80.195,80.17,12.82572889]
[1770844912585,55.68,80.195,80.169,1.67009764]
[1770844912586,0.2,80.2,80.18,12.82572889]
[1770844912781,0.2,80.2,80.19,12.82572889]
[1770844913291,1.60731737,80.199,80.17,12.82572889]
[1770844913590,1.60731737,80.199,80.18,12.82572889]
[1770844914472,14.07630077,80.199,80.18,12.82572889]
[1770844914964,1.60731737,80.196,80.17,12.82572889]
[1770844916286,1.60731737,80.196,80.18,12.82572889]
[1770844916863,12.4689834,80.199,80.18,12.82572889]
[1770844917084,1.60731737,80.198,80.18,12.82572889]
[1770844917264,1.60731737,80.198,80.17,14.49582653]
[1770844917894,1.60731737,80.198,80.117,1.67009764]
[1770844918198,1.60731737,80.189,80.151,1.67009764]
[1770844918365,1.60731737,80.188,80.16,12.82572889]
[1770844918764,1.60731737,80.188,80.161,1.67009764]
[1770844918983,1.60731737,80.188,80.17,12.82572889]
[1770844919369,12.47084938,80.187,80.17,12.82572889]
[1770844919988,12.47084938,80.187,80.166,1.67009764]
[1770844921493,12.47028972,80.191,80.17,14.49582653]
[1770844921804,1.60731737,80.195,80.17,14.49582653]
[1770844922098,1.60731737,80.195,80.171,1.67009764]
[1770844922969,1.60731737,80.189,80.148,1.67009764]
[1770844923197,1.60731737,80.189,80.15,12.82572889]
[1770844924006,14.27625977,80.2,80.177,1.67009764]
[1770844924207,1.60731737,80.199,80.17,12.82572889]
[1770844925024,1.60731737,80.197,80.16,12.82572889]
[1770844925720,1.60731737,80.197,80.161,1.67009764]
[1770844925917,1.60731737,80.197,80.18,12.82572889]
[1770844926297,1.60731737,80.197,80.171,1.67009764]
[1770844926511,1.60731737,80.197,80.17,12.82572889]
[1770844927325,1.60731737,80.195,80.16,12.82572889]
[1770844928212,43.64307445,80.196,80.13,12.82572889]
[1770844928213,1.60731737,80.179,80.13,12.82572889]
[1770844928392,12.82572889,80.17,80.13,14.49582653]
[1770844928594,1.60731737,80.169,80.13,14.49582653]
[1770844929291,1.60731737,80.167,80.131,1.67009764]
[1770844929510,1.60731737,80.167,80.14,12.82572889]
[1770844929710,1.60731737,80.167,80.14,14.49582653]
[1770844929911,1.60731737,80.167,80.141,1.67009764]
[1770844931417,1.60731737,80.165,80.133,1.67009764]
[1770844932503,1.60731737,80.163,80.133,1.67009764]
[1770844933224,1.60731737,80.159,80.121,1.67009764]
[1770844933812,1.60731737,80.159,80.094,4.61729252]
[1770844933813,1.60731737,80.129,80.09,6.46159766]
[1770844934022,1.60731737,80.129,80.08,0.1]
[1770844934023,1.60731737,80.129,80.084,1.67009764]
[1770844934201,1.60731737,80.129,80.091,1.67009764]
[1770844934709,1.60731737,80.127,80.091,1.67009764]
[1770844934904,4.79150002,80.11,80.08,0.1]
[1770844935116,1.60731737,80.109,80.08,0.1]
[1770844935411,1.60731737,80.109,80.081,1.67009764]
[1770844936532,12.48314775,80.108,80.082,1.67009764]
[1770844938427,12.48229712,80.114,80.09,4.79150002]
[1770844938730,1.60731737,80.113,80.09,4.79150002]
[1770844938916,1.60731737,80.126,80.1,4.79150002]
[1770844940231,1.60731737,80.109,80.08,0.1]
[1770844940927,12.48314775,80.108,80.081,1.63770608]
[1770844941425,12.48314775,80.108,80.09,4.79150002]
[1770844943132,12.48221284,80.114,80.09,4.79150002]
[1770844943317,1.66835198,80.113,80.09,4.79150002]
[1770844943519,1.66835198,80.113,80.091,12.4857974]
[1770844945012,1.66835198,80.125,80.1,4.79150002]
[1770844945221,1.66835198,80.123,80.092,1.63770608]
[1770844945528,1.66835198,80.123,80.08,4.89150002]
[1770844945727,1.66835198,80.119,80.08,4.89150002]
[1770844946433,1.66835198,80.119,80.08,17.37886222]
[1770844947237,12.48158965,80.118,80.08,17.37886222]
[1770844947448,1.66497702,80.109,80.08,0.1]
[1770844949142,1.66497702,80.099,80.08,0.1]
[1770844949735,1.66497702,80.097,80.061,12.49041933]
[1770844951545,1.66497702,80.097,80.062,1.7309709]
[1770844951746,55.8,80.114,80.07,4.79150002]
[1770844951747,43.69756291,80.096,80.07,4.79150002]
[1770844951948,1.66497702,80.095,80.06,4.79150002]
[1770844952132,1.66497702,80.089,80.051,12.49189651]
[1770844952529,1.66497702,80.089,80.051,14.22286741]
[1770844952733,1.66497702,80.089,80.052,1.7309709]
[1770844953348,1.66497702,80.089,80.06,4.79150002]
[1770844954551,1.66497702,80.087,80.058,1.7309709]
[1770844954735,1.66497702,80.087,80.06,4.79150002]
[1770844954941,1.66497702,80.087,80.06,4.80076714]
[1770844955534,1.66497702,80.087,80.058,1.7309709]
[1770844956750,14.15155394,80.086,80.061,1.7309709]
[1770844956951,12.48574643,80.092,80.071,1.7309709]
[1770844959037,1.66497702,80.119,80.081,1.7309709]
[1770844959235,4.61729252,80.117,80.09,4.80076714]
[1770844959449,1.66497702,80.116,80.091,1.7309709]
[1770844960952,1.66497702,80.114,80.083,1.7309709]
[1770844961150,1.66497702,80.114,80.09,4.80076714]
[1770844964951,1.66497702,80.112,80.08,4.80076714]
[1770844965158,1.66497702,80.112,80.07,4.80076714]
[1770844965343,1.66497702,80.109,80.07,6.53173804]
[1770844965542,1.66497702,80.109,80.08,4.80076714]
[1770844966346,1.66497702,80.107,80.08,4.80076714]
[1770844968769,1.66497702,80.105,80.08,6.53173804]
[1770844974470,12.48345941,80.106,80.08,6.53173804]
[1770844974773,12.48345941,80.106,80.077,12.48794608]
[1770844974774,31.20786937,80.233,80.113,4.61729252]
[1770844975068,31.20786937,80.233,80.19,4.80076714]
[1770844975249,0.2,80.26,80.22,4.80076714]
[1770844975445,17.46,80.279,80.23,4.80076714]
[1770844975645,29.91655775,80.279,80.24,4.80076714]
[1770844975845,29.91655775,80.279,80.217,22.78]
[1770844975846,4.61729252,80.276,80.23,4.80076714]
[1770844976061,4.80076714,80.25,80.16,4.80076714]
[1770844976372,4.80076714,80.25,80.2,4.80076714]
[1770844976556,1.76825527,80.248,80.21,4.80076714]
[1770844976867,1.76825527,80.248,80.21,12.80970261]
[1770844977448,1.76825527,80.247,80.21,12.80970261]
[1770844977656,1.76825527,80.247,80.168,112.2636311]
[1770844977657,1.76825527,80.229,80.19,12.80970261]
[1770844978547,1.76825527,80.229,80.2,25.27837911]
[1770844978746,1.76825527,80.229,80.21,12.80970261]
[1770844978977,1.76825527,80.229,80.2,25.27837911]
[1770844979842,1.76825527,80.229,80.21,12.80970261]
[1770844980543,4.61729252,80.246,80.19,12.80970261]
[1770844980544,1.76825527,80.227,80.19,12.80970261]
[1770844980764,1.76825527,80.227,80.2,12.80970261]
[1770844982472,1.76825527,80.227,80.19,12.80970261]
[1770844982671,5.36086188,80.24,80.171,50.6]
[1770844982672,1.76825527,80.219,80.171,12.47324131]
[1770844982872,1.76825527,80.217,80.171,12.47324131]
[1770844983376,1.76825527,80.217,80.18,12.80970261]
[1770844983673,1.76825527,80.215,80.171,12.47324131]
[1770844984875,1.76825527,80.209,80.17,12.80970261]
[1770844985173,1.76825527,80.199,80.16,12.80970261]
[1770844985867,1.76825527,80.197,80.161,12.47489427]
[1770844986069,1.76825527,80.195,80.17,12.80970261]
[1770844986875,1.76825527,80.195,80.161,12.47489427]
[1770844990172,1.76825527,80.194,80.161,12.53738107]
[1770844990662,1.76825527,80.194,80.17,12.80970261]
[1770844990864,1.76825527,80.201,80.171,0.06624629]
[1770844991055,1.76825527,80.201,80.17,12.80970261]
[1770844992179,1.76825527,80.199,80.171,12.47333823]
[1770844992582,1.76825527,80.199,80.165,12.47419101]
[1770844993081,1.76825527,80.189,80.155,12.47575332]
[1770844993659,1.76825527,80.179,80.145,12.47734313]
[1770844993863,1.76825527,80.177,80.145,12.47734313]
[1770844994860,1.76825527,80.177,80.117,50.4]
[1770844994861,1.76825527,80.149,80.118,12.48158965]
[1770844995076,1.76825527,80.149,80.121,0.08102262]
[1770844997160,1.76825527,80.149,80.122,0.08818474]
[1770844999464,56.16,80.162,80.138,0.09854386]
[1770844999778,1.76825527,80.176,80.15,4.7924382]
[1770844999966,1.76825527,80.176,80.141,0.10193605]
[1770845001479,1.76825527,80.174,80.141,12.57994356]
[1770845001867,1.76825527,80.174,80.142,0.11188398]
[1770845002364,1.76825527,80.174,80.15,12.83070585]
[1770845002567,56.18,80.18,80.151,0.11512548]
[1770845002775,1.76825527,80.179,80.151,0.11512548]
[1770845004084,1.76825527,80.179,80.15,12.83070585]
[1770845004463,1.76825527,80.209,80.171,0.11009088]
[1770845004666,1.76825527,80.209,80.151,106.04983092]
[1770845004667,1.76825527,80.226,80.191,0.11009088]
[1770845004893,1.76825527,80.226,80.2,12.83070585]
[1770845005267,1.76825527,80.235,80.21,12.83070585]
[1770845005573,1.76825527,80.234,80.21,12.83070585]
[1770845007062,1.76825527,80.234,80.211,12.46711797]
[1770845007265,18.19156773,80.26,80.211,12.46711797]
[1770845007266,1.76825527,80.278,80.221,0.10519862]
[1770845007475,1.76825527,80.276,80.24,12.83070585]
[1770845008191,0.2,80.28,80.27,12.83070585]
[1770845008363,0.2,80.28,80.26,12.83070585]
[1770845008563,1.76825527,80.279,80.26,12.83070585]
[1770845009300,0.2,80.29,80.227,50.24]
[1770845009301,0.2,80.29,80.27,12.83070585]
[1770845009797,0.2,80.29,80.28,12.83070585]
[1770845011165,0.2,80.29,80.27,12.83070585]
[1770845012163,1.96825527,80.29,80.27,12.83070585]
[1770845012784,1.96825527,80.29,80.263,12.45893999]
[1770845013081,1.96825527,80.29,80.26,12.83070585]
[1770845013280,1.76825527,80.288,80.26,12.83070585]
[1770845013597,0.2,80.29,80.28,12.83070585]
[1770845013781,0.01106364,80.3,80.281,0.08893256]
[1770845013977,0.01106364,80.3,80.29,12.83070585]
[1770845014476,0.01106364,80.3,80.281,0.08893256]
[1770845014477,1.81272345,80.325,80.3,12.83070585]
[1770845014879,1.81272345,80.325,80.31,12.83070585]
[1770845015991,1.81272345,80.323,80.272,12.45764401]
[1770845016172,1.81272345,80.323,80.3,12.83070585]
[1770845016582,1.81272345,80.323,80.31,12.83070585]
[1770845016897,1.81272345,80.323,80.31,12.77831136]
[1770845017278,1.81272345,80.321,80.3,12.77831136]
[1770845017791,1.81272345,80.321,80.29,12.77831136]
[1770845019287,1.81272345,80.319,80.29,12.77831136]
[1770845021977,1.81272345,80.309,80.27,12.77831136]
[1770845022306,1.81272345,80.309,80.259,12.45966184]
[1770845022307,1.81272345,80.325,80.3,12.77831136]
[1770845022977,1.81272345,80.325,80.29,12.77831136]
[1770845023174,1.81272345,80.319,80.28,12.77831136]
[1770845023780,1.81272345,80.319,80.27,12.77831136]
[1770845024600,1.81272345,80.317,80.271,12.4577992]
[1770845025073,1.81272345,80.317,80.28,12.77831136]
[1770845025688,1.81272345,80.315,80.28,12.77831136]
[1770845025889,1.81272345,80.309,80.271,12.4577992]
[1770845026102,1.81272345,80.307,80.271,12.4577992]
[1770845026795,1.81272345,80.307,80.27,12.77831136]
[1770845027000,1.81272345,80.307,80.271,12.4577992]
[1770845027510,1.81272345,80.307,80.28,12.77831136]
[1770845027998,1.81272345,80.307,80.28,25.23457794]
[1770845028206,1.81272345,80.306,80.28,12.77831136]
[1770845028701,1.81272345,80.306,80.27,12.77831136]
[1770845030202,1.81272345,80.306,80.28,12.77831136]
[1770845031303,1.81272345,80.323,80.29,12.77831136]
[1770845032307,1.81272345,80.323,80.291,12.45469604]
[1770845032691,1.81272345,80.323,80.3,12.77831136]
[1770845033038,1.81272345,80.328,80.3,12.77831136]
[1770845034191,1.81272345,80.326,80.3,12.77831136]
[1770845034799,56.48,80.329,80.31,12.77831136]
[1770845035290,56.48,80.329,80.32,12.77831136]
[1770845035514,0.1,80.33,80.32,12.77831136]
[1770845037520,1.81272345,80.329,80.281,43.596866]
[1770845037725,1.81272345,80.329,80.31,12.77831136]
[1770845038303,0.1,80.33,80.32,12.77831136]
[1770845038804,1.91272345,80.33,80.31,12.77831136]
[1770845039130,0.1,80.33,80.32,12.77831136]
[1770845039318,1.91272345,80.33,80.281,43.596866]
[1770845039631,1.91272345,80.33,80.3,12.77831136]
[1770845039823,1.81272345,80.328,80.3,25.23156221]
[1770845040633,1.81272345,80.326,80.29,12.77831136]
[1770845040834,1.81272345,80.326,80.31,12.77831136]
[1770845041023,56.52,80.327,80.31,12.77831136]
[1770845041216,1.81272345,80.327,80.31,12.77831136]
[1770845041416,0.1,80.33,80.31,12.77831136]
[1770845041915,1.91272345,80.33,80.31,12.77831136]
[1770845042122,0.1,80.33,80.31,12.77831136]
[1770845042323,0.1,80.33,80.32,12.77831136]
[1770845042916,0.1,80.34,80.32,12.77831136]
[1770845043110,0.1,80.36,80.33,12.77831136]
[1770845043315,0.1,80.36,80.35,12.77831136]
[1770845043718,38.84,80.376,80.35,12.77831136]
[1770845044031,38.84,80.376,80.36,12.77831136]
[1770845044233,12.5,80.473,80.361,12.44384713]
[1770845044433,102.8,80.558,80.361,12.44384713]
[1770845044434,1.81272345,80.501,80.407,4.61729252]
[1770845044636,1.81272345,80.529,80.48,12.77831136]
[1770845044826,12.77831136,80.58,80.408,17.42]
[1770845044827,1.81272345,80.549,80.5,12.77831136]
[1770845045034,1.81272345,80.549,80.51,12.77831136]
[1770845045410,1.81272345,80.579,80.53,12.77831136]
[1770845045711,0.1,80.56,80.54,12.77831136]
[1770845045916,1.81272345,80.559,80.52,12.77831136]
[1770845046128,1.81272345,80.559,80.54,12.77831136]
[1770845046334,12.77831136,80.6,80.55,10.96558791]
[1770845046543,31.01180774,80.615,80.521,93.14340357]
[1770845046544,192.27667993,80.613,80.521,12.41912047]
[1770845046831,56.84,80.612,80.52,1.65957375]
[1770845047236,5.36086188,80.611,80.52,1.65957375]
[1770845047432,12.77831136,80.54,80.52,1.65957375]
[1770845047636,1.78579771,80.529,80.48,12.77831136]
[1770845047842,1.78579771,80.529,80.49,12.77831136]
[1770845048337,1.78579771,80.558,80.494,4.61729252]
[1770845048526,1.78579771,80.558,80.493,50.12]
[1770845048734,1.78579771,80.558,80.51,12.77831136]
[1770845048937,1.78579771,80.549,80.51,12.77831136]
[1770845049338,4.61729252,80.579,80.487,4.61729252]
[1770845049339,1.78579771,80.561,80.487,4.61729252]
[1770845049541,69.36952463,80.584,80.541,1.65957375]
[1770845049542,1.78579771,80.583,80.541,1.65957375]
[1770845049934,1.78579771,80.569,80.53,1.65957375]
[1770845050131,12.41187568,80.568,80.521,12.41912047]
[1770845050441,4.61729252,80.581,80.521,12.41912047]
[1770845050442,1.78579771,80.567,80.53,14.43788511]
[1770845050830,1.78579771,80.567,80.53,1.65957375]
[1770845051032,1.78579771,80.567,80.521,12.41912047]
[1770845051234,1.78579771,80.567,80.498,20.90507865]
[1770845051235,12.77831136,80.54,80.498,20.90507865]
[1770845051546,1.78579771,80.529,80.493,12.42342085]
[1770845051861,1.78579771,80.529,80.488,1.65957375]
[1770845052030,56.96,80.538,80.481,12.42529292]
[1770845052031,1.78579771,80.519,80.481,12.42529292]
[1770845052231,12.77831136,80.52,80.481,12.42529292]
[1770845052232,1.78579771,80.537,80.482,1.65957375]
[1770845052455,1.78579771,80.529,80.491,1.65957375]
[1770845052655,1.78579771,80.519,80.481,12.42529292]
[1770845052856,1.78579771,80.529,80.491,1.65957375]
[1770845053050,1.78579771,80.529,80.481,14.08486667]
[1770845053253,1.78579771,80.529,80.482,1.65957375]
[1770845053766,14.56410907,80.52,80.482,1.65957375]
[1770845053931,12.77831136,80.53,80.49,12.77831136]
[1770845054256,1.78579771,80.527,80.491,1.65957375]
[1770845054551,1.78579771,80.527,80.492,12.42359489]
[1770845054735,12.41726993,80.533,80.493,1.65957375]
[1770845054941,12.77831136,80.53,80.493,1.65957375]
[1770845055652,12.77831136,80.53,80.492,12.42359489]
[1770845055653,1.78579771,80.56,80.521,1.65957375]
[1770845055853,1.78579771,80.562,80.53,12.77831136]
[1770845056557,1.78579771,80.559,80.522,12.41896624]
[1770845056851,1.78579771,80.549,80.511,1.65957375]
[1770845057359,1.78579771,80.549,80.52,12.77831136]
[1770845057737,1.78579771,80.539,80.5,25.2006716]
[1770845057934,12.77831136,80.52,80.486,12.42447963]
[1770845058239,1.78579771,80.519,80.486,12.42447963]
[1770845058657,1.78579771,80.519,80.481,12.42529292]
[1770845058852,1.78579771,80.519,80.457,54.33287394]
[1770845058853,12.77831136,80.5,80.456,1.65957375]
[1770845059036,1.78579771,80.499,80.461,1.65957375]
[1770845059235,1.78579771,80.519,80.48,12.77831136]
[1770845059436,12.77831136,80.51,80.479,1.65957375]
[1770845059736,1.78579771,80.518,80.48,12.77831136]
[1770845060259,1.78579771,80.518,80.479,1.65957375]
[1770845060554,1.63160326,80.529,80.479,1.65957375]
[1770845060740,31.0402592,80.541,80.479,1.65957375]
[1770845060741,1.63160326,80.527,80.49,12.77831136]
[1770845060934,1.63160326,80.527,80.486,12.42445862]
[1770845061460,1.63160326,80.519,80.481,12.42529292]
[1770845061747,1.63160326,80.519,80.49,12.77831136]
[1770845061931,1.63160326,80.519,80.482,1.62813335]
[1770845062132,1.63160326,80.519,80.49,12.77831136]
[1770845063040,56.88,80.531,80.477,1.62813335]
[1770845063041,1.63160326,80.517,80.477,1.62813335]
[1770845063353,1.63160326,80.509,80.47,12.77831136]
[1770845063554,1.63160326,80.499,80.46,12.77831136]
[1770845063853,1.63160326,80.499,80.461,12.42838145]
[1770845064647,1.63160326,80.513,80.47,12.77831136]
[1770845064840,1.63160326,80.509,80.47,12.77831136]
[1770845065249,1.63160326,80.508,80.471,14.05497034]
[1770845065665,1.63160326,80.507,80.471,14.05497034]
[1770845066157,1.63160326,80.507,80.48,12.77831136]
[1770845066554,56.82,80.508,80.49,12.77831136]
[1770845066753,1.63160326,80.516,80.481,1.62813335]
[1770845067060,1.63160326,80.516,80.49,12.77831136]
[1770845067356,1.63160326,80.516,80.49,25.20211349]
[1770845068742,1.74204046,80.514,80.485,12.42456944]
[1770845069359,1.74204046,80.514,80.49,12.77831136]
[1770845069857,1.74204046,80.514,80.485,12.42456944]
[1770845070056,1.74204046,80.526,80.485,12.42456944]
[1770845070234,1.74204046,80.51,80.49,12.77831136]
[1770845070437,1.74204046,80.526,80.49,12.77831136]
[1770845070661,1.74204046,80.526,80.484,1.69261585]
[1770845071152,1.74204046,80.519,80.475,1.69261585]
[1770845071654,1.74204046,80.509,80.473,12.42647531]
[1770845071860,1.74204046,80.499,80.46,12.77831136]
[1770845072066,1.74204046,80.497,80.461,12.42838145]
[1770845072476,1.74204046,80.495,80.461,12.42838145]
[1770845074447,12.42212026,80.502,80.471,1.69261585]
[1770845074760,12.77831136,80.5,80.461,45.19195092]
[1770845074964,1.74204046,80.499,80.462,1.69261585]
[1770845075554,1.74204046,80.499,80.47,12.77831136]
[1770845075762,1.74204046,80.499,80.462,1.69261585]
[1770845075939,1.74204046,80.499,80.47,12.77831136]
[1770845076549,1.74204046,80.497,80.47,12.77831136]
[1770845076762,1.74204046,80.507,80.472,1.69261585]
[1770845077156,1.74204046,80.506,80.472,1.69261585]
[1770845077345,56.78,80.511,80.472,1.69261585]
[1770845077557,1.74204046,80.515,80.481,1.69261585]
[1770845078655,1.74204046,80.513,80.482,12.42513854]
[1770845079068,56.76,80.519,80.49,12.72170123]
[1770845079069,1.74204046,80.518,80.49,12.72170123]
[1770845079762,1.74204046,80.518,80.482,43.48798489]
[1770845079763,1.74204046,80.539,80.51,12.72170123]
[1770845080269,1.74204046,80.539,80.502,1.69261585]
[1770845080270,1.74204046,80.538,80.502,1.69261585]
[1770845080468,1.74204046,80.538,80.5,12.72170123]
[1770845080668,1.74204046,80.529,80.491,1.69261585]
[1770845080854,1.74204046,80.519,80.492,12.42359489]
[1770845081059,1.74204046,80.519,80.483,12.42498415]
[1770845082569,1.74204046,80.519,80.483,14.1176]
[1770845082875,1.74204046,80.517,80.483,14.1176]
[1770845083456,1.74204046,80.53,80.5,12.72170123]
[1770845083654,1.74204046,80.529,80.491,1.69261585]
[1770845084061,1.74204046,80.529,80.484,1.69261585]
[1770845084261,1.74204046,80.529,80.49,12.72170123]
[1770845084456,12.72170123,80.52,80.484,1.69261585]
[1770845084664,12.72170123,80.52,80.481,12.42529292]
[1770845084665,1.74204046,80.517,80.481,12.42529292]
[1770845086375,5.36086188,80.534,80.481,12.42529292]
[1770845086376,12.72170123,80.54,80.496,1.69261585]
[1770845086555,57.18,80.556,80.52,12.72170123]
[1770845086872,12.41417889,80.554,80.521,12.41912047]
[1770845087671,62.01366238,80.628,80.531,1.69261585]
[1770845087848,62.01366238,80.628,80.521,155.23900595]
[1770845087849,12.40577849,80.608,80.548,1.69261585]
[1770845088053,12.72170123,80.59,80.55,1.69261585]
[1770845088260,1.74204046,80.607,80.561,1.69261585]
[1770845088462,1.74204046,80.607,80.57,12.72170123]
[1770845088676,1.74204046,80.605,80.566,12.41208069]
[1770845088972,1.74204046,80.599,80.564,1.69261585]
[1770845089158,1.74204046,80.597,80.56,12.72170123]
[1770845089472,1.74204046,80.578,80.541,1.69261585]
[1770845089674,1.74204046,80.578,80.54,12.72170123]
[1770845089675,1.74204046,80.569,80.53,12.72170123]
[1770845089981,1.74204046,80.569,80.52,1.69261585]
[1770845089982,1.74204046,80.549,80.52,12.72170123]
[1770845090175,1.74204046,80.549,80.511,1.69261585]
[1770845090779,1.75676891,80.547,80.512,12.42050874]
[1770845090963,1.75676891,80.539,80.512,11.99499929]
[1770845091978,1.75676891,80.539,80.512,13.67280258]
[1770845092877,5.36086188,80.568,80.51,12.72170123]
[1770845092878,1.75676891,80.578,80.521,1.67780329]
[1770845093103,1.75676891,80.569,80.53,12.72170123]
[1770845093256,12.72170123,80.55,80.521,1.67780329]
[1770845093464,1.75676891,80.539,80.51,12.42081383]
[1770845093658,1.75676891,80.539,80.506,1.67780329]
[1770845094074,1.75676891,80.539,80.508,1.67780329]
[1770845094383,1.85676891,80.61,80.531,1.67780329]
[1770845094588,1.75676891,80.579,80.531,1.67780329]
[1770845094770,1.75676891,80.578,80.531,1.67780329]
[1770845095483,1.75676891,80.576,80.531,1.67780329]
[1770845095672,1.75676891,80.569,80.531,1.67780329]
[1770845095861,12.72170123,80.56,80.531,1.67780329]
[1770845096058,1.75676891,80.549,80.511,1.67780329]
[1770845096261,1.75676891,80.549,80.512,1.67780329]
[1770845096690,43.44641814,80.559,80.506,12.42131834]
[1770845096691,1.75676891,80.539,80.506,12.42131834]
[1770845097484,1.75676891,80.539,80.506,14.09912163]
[1770845097863,1.75676891,80.539,80.507,1.67780329]
[1770845098060,12.41649904,80.538,80.507,1.67780329]
[1770845098367,1.75676891,80.537,80.508,12.42112585]
[1770845100187,1.75676891,80.537,68.0,36.0]
[1770845100188,1.75676891,80.589,80.511,1.67780329]
[1770845100380,1.75676891,80.569,80.53,12.72170123]
[1770845100579,1.75676891,80.569,80.53,14.39950452]
[1770845100781,1.75676891,80.569,80.53,1.67780329]
[1770845100984,12.72170123,80.56,80.53,1.67780329]
[1770845101178,1.75676891,80.559,80.53,1.67780329]
[1770845101382,14.17018533,80.558,80.53,1.67780329]
[1770845101580,1.75676891,80.539,80.502,1.67780329]
[1770845102588,5.36086188,80.566,80.521,1.67780329]
[1770845102779,1.75676891,80.6,80.551,1.67780329]
[1770845102963,105.5793572,80.647,80.521,4.61729252]
[1770845102964,1.75676891,80.609,80.571,1.67780329]
[1770845103172,12.40442439,80.617,80.581,1.67780329]
[1770845103370,12.82170123,80.61,80.581,14.0875853]
[1770845103569,14.57847014,80.61,80.581,1.67780329]
[1770845103784,1.85676891,80.61,80.581,1.67780329]
[1770845104091,14.26224507,80.61,80.582,12.40971929]
[1770845104283,1.85676891,80.61,80.582,12.40971929]
[1770845104479,1.75676891,80.608,80.58,12.72170123]
[1770845104891,0.1,80.61,80.582,1.67780329]
[1770845105193,2.00047991,80.633,80.6,12.72170123]
[1770845105387,12.40263928,80.628,80.591,12.40833343]
[1770845105593,1.75676891,80.627,80.586,12.40898182]
[1770845105765,1.75676891,80.627,80.582,12.40971929]
[1770845105966,1.75676891,80.619,80.588,0.24457403]
[1770845106172,1.75676891,80.619,80.581,0.24457403]
[1770845106367,1.75676891,80.619,80.577,12.41048645]
[1770845106585,1.75676891,80.619,80.58,12.72170123]
[1770845107292,1.75676891,80.632,80.59,12.72170123]
[1770845107474,57.483711,80.633,80.59,12.72170123]
[1770845107475,1.75676891,80.628,80.59,12.72170123]
[1770845107674,1.75676891,80.626,80.59,12.72170123]
[1770845107992,1.75676891,80.626,80.6,12.72170123]
[1770845108295,1.75676891,80.626,80.591,0.25450167]
[1770845108597,1.75676891,80.626,80.6,12.72170123]
[1770845108800,1.75676891,80.626,80.591,0.25450167]
[1770845109491,1.75676891,80.617,80.571,0.26418742]
[1770845109878,1.75676891,80.617,80.57,12.72170123]
[1770845109879,1.75676891,80.609,80.57,12.72170123]
[1770845110600,1.75676891,80.609,80.562,0.26418742]
[1770845110799,1.75676891,80.589,80.55,12.72170123]
[1770845110979,1.75676891,80.589,80.55,12.99065197]
[1770845111180,1.75676891,80.589,80.551,0.26895074]
[1770845111387,12.72170123,80.59,80.552,12.68800397]
[1770845111388,14.16556426,80.588,80.552,12.68800397]
[1770845111590,12.40879535,80.588,80.552,12.68800397]
[1770845111793,1.75676891,80.587,80.552,12.68800397]
[1770845111994,1.75676891,80.587,80.552,0.27366293]
[1770845112394,1.75676891,80.586,80.552,0.27366293]
[1770845113090,57.2,80.59,80.561,0.27832051]
[1770845114003,1.75676891,80.606,80.57,12.72170123]
[1770845114199,12.40617827,80.605,80.571,0.28292346]
[1770845114698,1.75676891,80.604,80.571,0.28292346]